bitfinex/quotes_ETHUSD_20251125
["timestamp","ask_amount","ask_price","bid_price","bid_amount"]
[1764107494670,0.002,2946.7,2946.6,5.01654004]
[1764107494824,0.002,2946.7,2946.6,5.50584004]
[1764107496146,0.002,2946.7,2946.6,6.11133745]
[1764107496353,0.4893,2947.5,2947.0,0.405504]
[1764107496516,0.4893,2947.8,2947.4,3.64417855]
[1764107497342,0.8924,2948.0,2947.7,3.64417855]
[1764107497743,0.4767,2947.8,2947.7,3.64417855]
[1764107498245,0.966,2947.8,2947.7,3.64417855]
[1764107498753,0.966,2947.8,2947.4,7.03695381]
[1764107498959,0.4893,2947.7,2947.4,7.03695381]
[1764107499158,0.4767,2947.5,2947.4,7.76254792]
[1764107499556,0.966,2947.5,2947.4,7.76254792]
[1764107499857,3.58023294,2948.0,2947.5,0.72559411]
[1764107499858,0.1881,2948.0,2947.5,0.72559411]
[1764107500159,0.1881,2948.0,2947.3,1.74498808]
[1764107500160,0.4767,2947.5,2947.3,1.74498808]
[1764107500339,0.1691,2947.4,2947.3,5.54332474]
[1764107500939,0.6584,2947.4,2947.3,5.54332474]
[1764107501445,0.1691,2947.4,2947.3,4.11853001]
[1764107503429,0.4767,2947.1,2947.0,0.72559411]
[1764107503631,0.4767,2947.1,2946.5,0.001]
[1764107503970,0.6711,2946.6,2946.5,0.001]
[1764107504340,1.1604,2946.6,2946.5,0.001]
[1764107504544,0.6837,2946.9,2946.5,0.4927]
[1764107504846,0.6837,2946.9,2946.6,3.64417855]
[1764107505161,0.4893,2946.8,2946.6,3.64417855]
[1764107505461,0.4767,2946.7,2946.5,0.001]
[1764107505629,0.1691,2946.6,2946.5,0.001]
[1764107506059,0.6584,2946.6,2946.5,0.001]
[1764107509689,0.1944,2946.9,2946.5,0.001]
[1764107509865,0.7043,2947.1,2946.8,3.64417855]
[1764107510262,0.4868,2946.9,2946.8,3.64417855]
[1764107510460,0.215,2947.1,2946.8,3.64417855]
[1764107510771,0.6941,2947.3,2946.8,7.50567088]
[1764107510972,0.4791,2947.2,2946.8,7.50567088]
[1764107511179,0.4791,2947.3,2947.1,3.64417855]
[1764107511546,0.4868,2947.2,2947.1,3.64417855]
[1764107511977,0.9659,2947.2,2946.8,7.03766542]
[1764107512486,0.1692,2946.9,2946.8,7.03766542]
[1764107512649,0.4791,2947.1,2946.9,0.72559411]
[1764107512848,0.4791,2947.4,2946.9,0.72559411]
[1764107513054,0.215,2947.5,2947.1,3.64417855]
[1764107513270,4.08682049,2947.5,2947.1,3.64417855]
[1764107513760,0.4868,2947.2,2947.1,3.64417855]
[1764107514076,0.4791,2947.4,2947.2,3.39305103]
[1764107514384,0.4791,2947.4,2946.9,1.13109811]
[1764107514385,0.4868,2947.2,2946.9,1.13109811]
[1764107514568,0.1692,2947.1,2946.9,4.52445131]
[1764107514773,0.4836,2947.0,2946.9,4.52445131]
[1764107514962,0.4791,2947.3,2946.9,4.52445131]
[1764107515579,0.4868,2947.0,2946.9,0.72559411]
[1764107515972,0.9659,2947.0,2946.9,0.72559411]
[1764107517782,0.4868,2947.0,2946.9,4.11899056]
[1764107518652,0.4791,2947.2,2946.9,4.11899056]
[1764107519946,0.4868,2947.0,2946.9,0.72559411]
[1764107520987,0.9545,2947.0,2946.9,0.72559411]
[1764107521486,0.215,2947.3,2946.9,4.56939056]
[1764107521782,0.002,2947.0,2946.9,4.56939056]
[1764107522279,0.499,2947.0,2946.9,4.11899056]
[1764107522789,0.499,2947.0,2946.8,3.64417855]
[1764107522953,0.002,2947.0,2946.8,7.03768665]
[1764107523480,0.002,2947.0,2946.9,0.4504]
[1764107525400,0.002,2947.0,2946.8,7.03768665]
[1764107525602,0.002,2947.0,2946.9,0.4504]
[1764107525918,0.9667,2947.0,2946.5,0.001]
[1764107526219,0.497,2946.6,2946.5,0.001]
[1764107526378,0.8761,2946.9,2946.5,0.001]
[1764107526715,0.497,2946.6,2946.5,0.001]
[1764107527816,0.4084,2946.9,2946.5,0.4514]
[1764107527982,0.8761,2946.9,2946.5,0.4514]
[1764107528416,0.497,2946.6,2946.5,0.001]
[1764107528914,0.9647,2946.6,2946.5,0.001]
[1764107531901,0.497,2946.6,2946.5,0.001]
[1764107532621,0.497,2946.6,2946.5,4.36966631]
[1764107532788,0.9647,2946.6,2946.5,4.36966631]
[1764107535623,0.9647,2946.6,2946.5,0.001]
[1764107535624,4.67643693,2946.6,2946.5,0.001]
[1764107535827,5.40919562,2946.6,2946.5,0.001]
[1764107538825,5.62419562,2946.6,2946.5,0.001]
[1764107541559,6.34978973,2946.6,2946.5,0.001]
[1764107541728,8.256271,2946.2,2945.3,0.001]
[1764107541927,0.6403,2945.4,2945.3,0.001]
[1764107542236,0.8553,2945.4,2945.3,0.001]
[1764107542439,4.7461246,2945.4,2945.3,0.001]
[1764107549829,4.5311246,2945.4,2945.3,0.001]
[1764107550025,4.7461246,2945.4,2945.3,0.001]
[1764107551169,4.7461246,2945.4,2945.3,4.1353722]
[1764107551170,0.215,2945.4,2945.3,4.1353722]
[1764107551353,0.215,2945.4,2945.3,3.6440722]
[1764107551532,0.215,2945.4,2945.3,4.1353722]
[1764107552136,3.6101246,2945.4,2945.3,4.1353722]
[1764107553363,0.215,2945.4,2945.3,4.1353722]
[1764107553577,3.39445818,2946.0,2945.3,4.6258722]
[1764107553578,3.39443312,2946.0,2945.3,4.6258722]
[1764107553877,0.7107,2945.9,2945.4,0.4913]
[1764107554238,7.28502716,2945.8,2945.4,0.4913]
[1764107554776,0.1844,2946.1,2945.8,0.4913]
[1764107554951,0.215,2946.0,2945.7,3.6430722]
[1764107555551,0.215,2946.0,2945.5,0.4905]
[1764107555552,0.215,2946.0,2945.5,4.1335722]
[1764107555951,0.215,2946.0,2945.4,3.39511842]
[1764107555952,0.215,2946.0,2945.9,4.1343722]
[1764107556384,0.215,2946.0,2945.9,4.6248722]
[1764107556736,4.56103673,2946.0,2945.3,0.001]
[1764107556963,0.1857,2945.8,2945.4,0.72559411]
[1764107557367,0.6814,2945.8,2945.4,0.72559411]
[1764107558277,3.85092998,2945.5,2945.3,0.001]
[1764107558478,0.4007,2945.4,2945.3,0.001]
[1764107558651,0.8964,2945.4,2945.3,0.001]
[1764107559254,0.4007,2945.4,2945.3,0.001]
[1764107559576,0.215,2945.4,2945.3,0.001]
[1764107559879,0.1844,2945.9,2945.3,4.1353722]
[1764107560053,0.215,2945.8,2945.7,3.6430722]
[1764107560454,0.215,2945.8,2945.7,4.1343722]
[1764107560653,0.6709,2945.8,2945.5,3.6430722]
[1764107560980,0.4559,2945.6,2945.3,0.001]
[1764107561190,0.1857,2945.5,2945.3,0.001]
[1764107562987,0.4532,2945.4,2945.3,0.001]
[1764107563857,3.39495523,2945.6,2945.3,0.4923]
[1764107564698,3.39477883,2945.7,2945.3,0.4923]
[1764107564892,3.89047883,2945.7,2945.3,0.4923]
[1764107565198,0.4957,2945.6,2945.3,0.4923]
[1764107566597,3.8510246,2945.4,2945.3,0.001]
[1764107566801,4.0660246,2945.4,2945.3,0.001]
[1764107566997,4.5617246,2945.4,2945.3,0.001]
[1764107567304,0.6709,2945.4,2945.3,0.001]
[1764107567720,0.215,2945.4,2945.3,0.001]
[1764107567883,0.215,2945.4,2945.3,0.4923]
[1764107569921,4.5617246,2945.4,2945.3,0.001]
[1764107570138,4.87966476,2945.4,2945.3,0.001]
[1764107570599,5.61231324,2945.4,2945.3,0.001]
[1764107576538,5.11661324,2945.4,2945.3,0.001]
[1764107576705,5.61651324,2945.4,2945.3,0.001]
[1764107579140,5.40151324,2945.4,2945.3,0.001]
[1764107579325,5.61651324,2945.4,2945.3,0.001]
[1764107582973,17.07298535,2945.4,2945.3,0.001]
[1764107583251,0.4885,2945.2,2945.0,0.001]
[1764107583451,5.88808711,2945.0,2944.9,0.001]
[1764107583658,5.65510675,2945.0,2944.9,0.001]
[1764107583833,9.86052875,2945.0,2944.9,0.001]
[1764107584025,10.9903003,2945.0,2944.9,0.001]
[1764107584223,10.07552875,2945.0,2944.9,0.001]
[1764107585051,15.14312103,2945.0,2944.9,0.001]
[1764107586143,16.75129103,2945.0,2944.9,0.001]
[1764107586943,16.75129103,2945.0,2943.5,0.001]
[1764107586944,0.72559411,2944.7,2943.5,0.001]
[1764107587122,8.24150242,2944.7,2943.5,0.001]
[1764107587327,8.81717442,2944.7,2943.5,0.001]
[1764107587654,8.81717442,2944.7,2943.6,0.4628]
[1764107588044,8.35017442,2944.7,2943.6,0.4628]
[1764107588557,14.72017442,2944.7,2943.6,0.4628]
[1764107589055,15.90783842,2944.7,2943.6,0.4628]
[1764107589260,15.43533842,2944.7,2943.6,0.4628]
[1764107589440,14.92517442,2944.7,2943.6,0.4628]
[1764107589855,14.92517442,2944.7,2943.5,0.001]
[1764107590061,15.14017442,2944.7,2943.5,0.001]
[1764107590761,12.40901442,2944.7,2943.8,0.4628]
[1764107590959,12.40901442,2944.7,2943.9,0.4628]
[1764107591260,12.40901442,2944.7,2943.7,0.4628]
[1764107591863,12.40901442,2944.7,2943.9,0.4628]
[1764107592257,16.20271542,2944.7,2943.6,0.4628]
[1764107592763,16.20271542,2944.7,2943.5,0.001]
[1764107593268,18.32920742,2944.7,2943.5,0.001]
[1764107593470,18.46533708,2944.7,2943.5,0.001]
[1764107594261,20.84422108,2944.7,2943.5,0.001]
[1764107595027,20.84422108,2944.7,2943.7,0.4628]
[1764107595028,12.95064808,2944.7,2943.7,0.4628]
[1764107595232,15.73725108,2944.7,2943.7,0.4628]
[1764107595446,15.82725108,2944.7,2943.7,0.4628]
[1764107595861,12.95064808,2944.7,2943.7,0.4628]
[1764107596692,12.95064808,2944.7,2943.5,0.001]
[1764107596693,12.33014408,2944.7,2943.5,0.001]
[1764107596989,12.40901442,2944.7,2944.1,0.175]
[1764107599412,18.21615007,2944.7,2944.0,0.001]
[1764107599757,17.30235042,2944.7,2944.0,0.001]
[1764107600378,25.52775942,2944.7,2944.0,0.001]
[1764107600580,6.8269,2944.6,2944.0,0.001]
[1764107600891,4.472454,2943.1,2943.0,0.001]
[1764107601105,8.04317663,2943.1,2942.9,0.001]
[1764107601385,23.10208319,2943.0,2942.9,0.001]
[1764107601608,23.59512409,2943.0,2942.9,0.001]
[1764107601753,15.30031509,2943.0,2942.9,0.001]
[1764107601951,14.43383809,2943.0,2942.9,0.001]
[1764107602181,13.82118691,2943.0,2942.9,0.001]
[1764107602369,17.06968791,2943.0,2942.9,0.001]
[1764107602761,17.06968791,2943.0,2941.7,0.1574]
[1764107603105,1.86251611,2942.8,2941.7,0.61991]
[1764107603283,0.405504,2942.5,2941.7,0.12361]
[1764107603489,0.53294016,2942.4,2941.7,0.12361]
[1764107603788,0.31794016,2942.3,2941.7,0.61991]
[1764107604895,17.1791438,2942.9,2941.7,0.61991]
[1764107604896,10.19471913,2942.7,2942.2,0.6319]
[1764107605066,1.25671266,2942.6,2942.3,0.4671]
[1764107605260,0.94059411,2942.6,2942.3,0.4671]
[1764107605869,0.72559411,2942.6,2942.3,0.4671]
[1764107606069,0.5309616,2942.5,2942.0,0.4963]
[1764107606274,0.2218,2942.3,2941.7,0.12361]
[1764107606493,0.2218,2942.3,2941.7,0.61991]
[1764107606698,0.215,2942.5,2941.7,0.61991]
[1764107606998,6.79717236,2942.4,2941.7,0.61991]
[1764107607977,10.19575854,2942.4,2941.7,0.61991]
[1764107609190,10.14575854,2942.4,2941.7,0.61991]
[1764107611682,10.62225854,2942.4,2941.7,0.12361]
[1764107611891,3.34858618,2942.4,2942.3,0.4671]
[1764107612089,3.56358618,2942.4,2942.3,0.4671]
[1764107614915,3.39853281,2942.5,2942.3,0.4671]
[1764107615093,0.215,2942.4,2942.2,0.1648]
[1764107615422,0.215,2942.4,2942.2,0.6611]
[1764107615589,0.215,2942.4,2942.3,0.4671]
[1764107617217,3.61358618,2942.4,2942.3,0.4671]
[1764107617922,3.39858618,2942.4,2942.3,0.4671]
[1764107618121,3.92960561,2942.4,2942.3,0.4671]
[1764107618422,0.31601943,2942.4,2942.3,0.9634]
[1764107618622,0.215,2942.4,2942.3,0.9634]
[1764107619233,0.215,2942.4,2941.7,3.39932444]
[1764107619234,3.39870169,2942.3,2941.7,0.4963]
[1764107619395,10.41790507,2942.3,2941.7,0.4963]
[1764107619597,7.01920338,2942.3,2941.7,0.4963]
[1764107620404,10.41790507,2942.3,2941.7,0.4963]
[1764107623228,0.53151999,2942.2,2941.7,0.4963]
[1764107623399,6.79786546,2942.1,2941.7,0.4963]
[1764107623919,3.39893273,2942.1,2942.0,0.4671]
[1764107624534,3.39893273,2942.1,2942.0,0.9634]
[1764107625713,3.61393273,2942.1,2942.0,0.9634]
[1764107627144,3.93121479,2942.1,2942.0,0.9634]
[1764107627744,3.93121479,2942.1,2941.6,0.001]
[1764107627745,7.78704752,2942.1,2941.6,0.001]
[1764107628046,0.31728503,2942.0,2941.6,0.001]
[1764107628348,0.31728503,2941.9,2941.7,0.4963]
[1764107628543,7.48936546,2942.1,2941.6,0.001]
[1764107628737,0.31764298,2942.0,2941.6,0.001]
[1764107628918,0.31764298,2941.9,2941.6,0.001]
[1764107629115,0.31814935,2941.8,2941.6,0.001]
[1764107629315,0.215,2941.7,2941.6,0.001]
[1764107629628,3.6143949,2941.7,2941.6,0.001]
[1764107629837,3.6143949,2941.7,2941.6,0.4681]
[1764107630019,0.215,2941.7,2941.6,0.9644]
[1764107630226,0.53384914,2941.7,2941.6,0.9644]
[1764107630745,1.26851208,2941.7,2941.6,0.4681]
[1764107631746,1.26851208,2941.7,2941.6,0.9616]
[1764107631923,4.66790698,2941.7,2941.6,0.9616]
[1764107634354,1.26851208,2941.7,2941.6,0.9616]
[1764107636760,4.66790698,2941.7,2941.6,0.4681]
[1764107636949,4.45290698,2941.7,2941.6,0.4681]
[1764107637154,4.66790698,2941.7,2941.6,0.4681]
[1764107638146,1.26851208,2941.7,2941.6,0.9616]
[1764107638548,4.66790698,2941.7,2941.6,0.9616]
[1764107639865,4.66790698,2941.7,2941.6,0.001]
[1764107640066,5.13410698,2941.7,2941.6,0.001]
[1764107640476,5.60900698,2941.7,2941.6,0.001]
[1764107640844,5.13410698,2941.7,2941.6,0.001]
[1764107641260,6.52102898,2941.7,2941.6,0.001]
[1764107641466,5.60900698,2941.7,2941.6,0.001]
[1764107642082,5.13410698,2941.7,2941.6,0.001]
[1764107642449,5.13390724,2941.7,2941.6,0.001]
[1764107642654,5.60880724,2941.7,2941.6,0.001]
[1764107642851,6.52082924,2941.7,2941.6,0.001]
[1764107644648,8.65922524,2941.7,2941.6,0.001]
[1764107644884,6.52082924,2941.7,2941.6,0.001]
[1764107645380,11.28872024,2941.7,2941.6,0.001]
[1764107645684,9.31785424,2941.7,2941.6,0.001]
[1764107646288,9.06245524,2941.7,2941.6,0.001]
[1764107647858,6.52082924,2941.7,2941.6,0.001]
[1764107648258,9.65662324,2941.7,2941.6,0.001]
[1764107648965,8.37906124,2941.7,2941.6,0.001]
[1764107649469,5.60880724,2941.7,2941.6,0.001]
[1764107649670,8.39206124,2941.7,2941.6,0.001]
[1764107649872,9.30408324,2941.7,2941.6,0.001]
[1764107651267,8.39206124,2941.7,2941.6,0.001]
[1764107651762,9.30408324,2941.7,2941.6,0.001]
[1764107652620,8.39206124,2941.7,2941.6,0.001]
[1764107653086,5.13390724,2941.7,2941.6,0.001]
[1764107653291,5.60880724,2941.7,2941.6,0.001]
[1764107657132,4.45270724,2941.7,2941.6,0.9596]
[1764107657288,3.9330443,2941.7,2941.6,0.9596]
[1764107657483,3.9330443,2941.7,2941.6,0.4751]
[1764107657717,3.9330443,2941.7,2941.6,0.001]
[1764107658017,4.3992443,2941.7,2941.6,0.001]
[1764107658224,3.7180443,2941.7,2941.6,0.4751]
[1764107658424,3.9330443,2941.7,2941.6,0.4751]
[1764107658910,4.3992443,2941.7,2941.6,0.001]
[1764107659212,5.60741078,2941.7,2941.6,0.001]
[1764107659413,5.13251078,2941.7,2941.6,0.001]
[1764107659988,5.60741078,2941.7,2941.6,0.001]
[1764107661594,6.33300489,2941.7,2941.6,0.001]
[1764107663503,20.46912218,2941.7,2941.6,0.001]
[1764107664331,21.68515077,2941.7,2941.6,0.001]
[1764107665226,19.66480377,2941.7,2941.6,0.001]
[1764107665434,19.07093577,2941.7,2941.6,0.001]
[1764107667730,19.47643977,2941.7,2941.6,0.001]
[1764107668114,18.26041118,2941.7,2941.6,0.001]
[1764107668512,18.26050997,2941.7,2941.6,0.001]
[1764107670531,18.25907497,2941.7,2941.6,0.001]
[1764107671338,17.23156997,2941.7,2941.6,0.001]
[1764107672344,10.39653697,2941.7,2941.6,0.001]
[1764107672648,20.19370297,2941.7,2941.6,0.001]
[1764107672846,10.35034211,2941.6,2941.5,0.001]
[1764107673008,13.94423009,2941.6,2941.5,0.001]
[1764107673512,19.54038556,2941.6,2941.5,0.001]
[1764107673722,17.70371225,2941.6,2941.5,0.001]
[1764107673938,16.31505925,2941.6,2941.5,0.001]
[1764107674423,16.44104425,2941.6,2941.5,0.001]
[1764107674627,15.78134425,2941.6,2941.5,0.001]
[1764107675621,16.30875225,2941.6,2941.5,0.001]
[1764107675822,16.23675796,2941.6,2941.5,0.001]
[1764107676218,15.76425796,2941.6,2941.5,0.001]
[1764107676532,16.38411296,2941.6,2941.5,0.001]
[1764107677053,15.91161296,2941.6,2941.5,0.001]
[1764107677759,17.01655916,2941.6,2941.5,0.001]
[1764107678061,12.90733416,2941.6,2941.5,0.478]
[1764107678227,12.98606445,2941.6,2941.5,0.478]
[1764107680628,10.82152514,2941.6,2941.5,0.9613]
[1764107680865,11.03652514,2941.6,2941.5,0.9613]
[1764107681227,4.45152514,2941.6,2941.5,0.9613]
[1764107681441,4.66652514,2941.6,2941.5,0.9613]
[1764107681965,0.53374819,2941.6,2941.5,4.61922929]
[1764107682128,0.215,2941.7,2941.5,4.61922929]
[1764107682463,0.215,2941.7,2941.6,0.4833]
[1764107682630,0.215,2941.7,2941.6,0.9603]
[1764107682829,3.93288821,2941.7,2941.6,0.9603]
[1764107684062,0.53349331,2941.7,2941.6,0.9603]
[1764107684264,3.6143949,2941.7,2941.6,0.9603]
[1764107684622,0.215,2941.7,2941.6,0.9603]
[1764107684822,3.6143949,2941.7,2941.6,0.9603]
[1764107686134,0.215,2941.7,2941.6,0.9603]
[1764107689178,3.6143949,2941.7,2941.6,0.9603]
[1764107689980,3.6143949,2941.7,2941.6,0.477]
[1764107690780,3.6143949,2941.7,2941.6,0.946]
[1764107691263,0.215,2941.7,2941.6,0.946]
[1764107691471,3.6143949,2941.7,2941.6,0.946]
[1764107692149,0.215,2941.7,2941.6,0.946]
[1764107692977,3.40118001,2941.9,2941.6,0.946]
[1764107693149,0.215,2941.7,2941.5,3.65892929]
[1764107693986,0.215,2941.7,2941.6,0.9313]
[1764107695552,3.6143949,2941.7,2941.6,0.9313]
[1764107699188,0.215,2941.7,2941.6,0.9313]
[1764107700562,0.002,2941.7,2941.6,0.9313]
[1764107700887,0.217,2941.7,2941.6,0.9313]
[1764107701501,0.002,2941.7,2941.6,4.33081047]
[1764107702212,3.4013949,2941.7,2941.5,0.001]
[1764107702396,3.4013949,2941.7,2941.6,0.4592]
[1764107703092,0.002,2941.7,2941.6,0.4592]
[1764107704996,0.002,2941.7,2941.6,4.58672929]
[1764107705172,0.002,2941.7,2941.6,7.98623976]
[1764107706177,0.002,2941.7,2941.6,4.58672929]
[1764107706604,0.002,2941.7,2941.6,7.98623976]
[1764107708115,0.002,2941.7,2941.6,4.58672929]
[1764107708475,0.002,2941.7,2941.6,7.98623976]
[1764107710823,0.002,2941.7,2941.6,8.71183387]
[1764107711182,0.002,2941.7,2941.6,8.92883387]
[1764107712610,0.002,2941.7,2941.6,8.92500735]
[1764107721423,0.002,2941.7,2941.6,9.01936735]
[1764107721722,0.002,2941.7,2941.6,8.92500735]
[1764107721927,0.002,2941.7,2941.6,9.01936735]
[1764107722526,0.002,2941.7,2941.6,8.92500735]
[1764107724522,0.002,2941.7,2941.6,8.92330735]
[1764107724725,0.4762,2941.7,2941.6,0.72559411]
[1764107725040,0.002,2941.7,2941.6,1.20049411]
[1764107725242,0.002,2941.7,2941.6,5.06790458]
[1764107725417,0.002,2941.7,2941.6,1.20049411]
[1764107725619,0.002,2941.7,2941.6,4.60000458]
[1764107725818,0.002,2941.7,2941.6,8.72200735]
[1764107726346,0.002,2941.7,2941.6,4.85459688]
[1764107727113,0.002,2941.7,2941.6,8.25410735]
[1764107727330,0.002,2941.7,2941.6,8.72200735]
[1764107727528,0.4762,2941.7,2941.5,0.001]
[1764107727729,0.2074,2941.6,2941.5,0.001]
[1764107728622,0.002,2941.7,2941.5,0.4759]
[1764107729549,0.4742,2941.6,2941.5,0.001]
[1764107730042,0.002,2941.7,2941.5,0.4759]
[1764107730543,0.002,2941.7,2941.6,0.4749]
[1764107732933,0.4762,2941.7,2941.5,0.001]
[1764107733132,0.6888,2941.6,2941.5,0.001]
[1764107734351,0.9038,2941.6,2941.5,0.001]
[1764107734555,1.22234872,2941.6,2941.5,0.001]
[1764107734757,0.9038,2941.6,2941.5,0.001]
[1764107735652,4.30331047,2941.6,2941.5,0.001]
[1764107736664,3.82191047,2941.6,2941.5,0.001]
[1764107736873,0.4224,2941.6,2941.5,0.001]
[1764107738234,0.215,2941.6,2941.5,0.4759]
[1764107739070,0.215,2941.6,2941.5,0.001]
[1764107739442,0.6892,2941.6,2941.5,0.001]
[1764107741274,4.08871047,2941.6,2941.5,0.001]
[1764107742441,0.6892,2941.6,2941.5,0.001]
[1764107743080,4.08871047,2941.6,2941.5,0.001]
[1764107743372,4.57011047,2941.6,2941.5,0.001]
[1764107749479,1.1706,2941.6,2941.5,0.001]
[1764107749789,4.08871047,2941.6,2941.5,0.001]
[1764107750882,4.09071047,2941.6,2941.5,0.001]
[1764107751083,0.217,2941.6,2941.5,0.4643]
[1764107751382,0.217,2941.6,2941.5,0.9444]
[1764107751758,0.002,2941.6,2941.5,4.34402604]
[1764107752267,0.002,2941.6,2941.5,5.06962015]
[1764107752594,0.002,2941.6,2941.5,4.80452015]
[1764107752897,0.002,2941.6,2941.5,1.40489411]
[1764107753294,0.002,2941.6,2941.5,0.001]
[1764107753680,0.002,2941.6,2941.5,0.4643]
[1764107754681,0.002,2941.6,2941.5,0.9444]
[1764107755311,0.002,2941.6,2941.5,0.4643]
[1764107756164,0.002,2941.6,2941.5,0.9444]
[1764107757396,0.002,2941.6,2941.5,0.4643]
[1764107762221,0.002,2941.6,2941.5,5.09821641]
[1764107762537,0.4645,2941.6,2941.5,0.94159411]
[1764107762685,0.4645,2941.6,2941.5,0.216]
[1764107762883,0.4645,2941.6,2941.5,0.001]
[1764107763288,0.002,2941.6,2941.5,0.001]
[1764107763718,0.4645,2941.6,2941.5,0.001]
[1764107767785,0.002,2941.6,2941.5,0.001]
[1764107768425,0.4645,2941.6,2941.5,0.001]
[1764107768628,4.67474457,2941.6,2941.5,0.001]
[1764107768926,4.18294457,2941.6,2941.5,0.001]
[1764107769122,3.72044457,2941.6,2941.5,0.001]
[1764107769329,4.18294457,2941.6,2941.5,0.001]
[1764107770033,3.86401047,2941.6,2941.5,0.001]
[1764107771139,4.18294853,2941.6,2941.5,0.001]
[1764107771842,3.86401047,2941.6,2941.5,0.001]
[1764107772635,4.18294654,2941.6,2941.5,0.001]
[1764107773323,4.67474654,2941.6,2941.5,0.001]
[1764107773517,4.88974654,2941.6,2941.5,0.001]
[1764107774134,4.67474654,2941.6,2941.5,0.001]
[1764107774341,4.57081047,2941.6,2941.5,0.001]
[1764107774837,3.86401047,2941.6,2941.5,0.001]
[1764107775138,4.07901047,2941.6,2941.5,0.001]
[1764107775341,4.39797927,2941.6,2941.5,0.001]
[1764107775509,4.07901047,2941.6,2941.5,0.001]
[1764107775911,3.40151047,2941.6,2941.5,0.001]
[1764107776110,3.61651047,2941.6,2941.5,0.001]
[1764107776734,4.07901047,2941.6,2941.5,0.001]
[1764107776933,4.18299402,2941.6,2941.5,0.001]
[1764107777134,4.07901047,2941.6,2941.5,0.001]
[1764107777461,0.99851084,2941.6,2941.5,0.001]
[1764107778161,0.32101084,2941.6,2941.5,0.001]
[1764107778329,0.53601084,2941.6,2941.5,0.4777]
[1764107778763,0.53601084,2941.6,2941.5,0.001]
[1764107778961,0.99851084,2941.6,2941.5,0.001]
[1764107781032,0.78351084,2941.6,2941.5,0.001]
[1764107781355,0.99851084,2941.6,2941.5,0.001]
[1764107781960,4.88702131,2941.6,2941.5,0.001]
[1764107783465,5.62226037,2941.6,2941.5,0.001]
[1764107783664,5.40726037,2941.6,2941.5,0.001]
[1764107783837,5.62226037,2941.6,2941.5,0.001]
[1764107784443,4.88702131,2941.6,2941.5,0.001]
[1764107785142,4.67202131,2941.6,2941.5,0.001]
[1764107785344,4.39802131,2941.6,2941.5,0.001]
[1764107786972,4.18302131,2941.6,2941.5,0.001]
[1764107787174,4.39802131,2941.6,2941.5,0.001]
[1764107789246,4.18302131,2941.6,2941.5,0.001]
[1764107789542,4.39802131,2941.6,2941.5,0.001]
[1764107790478,4.88702131,2941.6,2941.5,0.001]
[1764107790798,9.27797869,2941.6,2941.5,0.001]
[1764107790959,1.42409411,2941.5,2941.3,0.001]
[1764107791162,6.07982591,2941.4,2941.3,0.001]
[1764107791360,9.96856752,2941.4,2941.3,0.001]
[1764107791765,10.10483213,2941.4,2941.3,0.001]
[1764107792182,9.18787444,2941.4,2941.3,0.001]
[1764107792364,10.31897255,2941.4,2941.3,0.001]
[1764107792692,11.23593024,2941.4,2941.3,0.001]
[1764107793087,10.83042624,2941.4,2941.3,0.001]
[1764107794310,10.31897255,2941.4,2941.3,0.001]
[1764107794605,11.23593024,2941.4,2941.3,0.001]
[1764107794761,11.45093024,2941.4,2941.3,0.001]
[1764107795277,10.53397255,2941.4,2941.3,0.001]
[1764107795980,10.31897255,2941.4,2941.3,0.001]
[1764107796181,10.53397255,2941.4,2941.3,0.001]
[1764107796380,10.39770794,2941.4,2941.3,0.001]
[1764107796581,15.75885994,2941.4,2941.3,0.001]
[1764107796986,13.76625694,2941.4,2941.3,0.001]
[1764107797297,13.12634794,2941.4,2941.3,0.001]
[1764107798094,14.04330563,2941.4,2941.3,0.001]
[1764107798273,13.12634794,2941.4,2941.3,0.001]
[1764107799401,10.39770794,2941.4,2941.3,0.001]
[1764107799905,13.23921594,2941.4,2941.3,0.001]
[1764107800204,13.02421594,2941.4,2941.3,0.001]
[1764107800507,10.39970794,2941.4,2941.3,0.001]
[1764107800905,13.22685594,2941.4,2941.3,0.001]
[1764107801105,10.39970794,2941.4,2941.3,0.001]
[1764107801311,13.22785594,2941.4,2941.3,0.001]
[1764107801484,10.39970794,2941.4,2941.3,0.001]
[1764107801805,13.77521594,2941.4,2941.3,0.001]
[1764107802007,13.36439294,2941.4,2941.3,0.001]
[1764107802575,1.13109811,2941.3,2941.2,0.001]
[1764107802792,3.40437288,2941.3,2941.2,0.001]
[1764107802987,2.70241519,2941.3,2941.2,0.001]
[1764107804213,5.88727239,2941.3,2941.2,0.001]
[1764107804396,6.10227239,2941.3,2941.2,0.001]
[1764107804707,9.75841953,2941.3,2941.2,0.001]
[1764107804910,11.78370053,2941.3,2941.2,0.001]
[1764107805678,11.89775953,2941.3,2941.2,0.001]
[1764107805914,12.30326353,2941.3,2941.2,0.001]
[1764107806724,18.71382757,2941.3,2941.2,0.001]
[1764107807213,25.08382757,2941.3,2941.2,0.001]
[1764107807584,0.856004,2941.0,2940.9,1e-08]
[1764107807921,0.856004,2941.0,2940.7,0.001]
[1764107807922,1.13109811,2940.9,2940.7,0.001]
[1764107808127,0.72559411,2940.0,2939.1,0.4662]
[1764107808333,3.65614714,2939.7,2939.0,0.1648]
[1764107808487,0.31901084,2939.6,2939.0,0.1648]
[1764107808689,0.215,2939.5,2939.0,0.1648]
[1764107808994,0.4529,2939.1,2938.5,0.4662]
[1764107809209,0.4529,2939.1,2938.0,0.1256]